Cogmind - Beta 16 @@@ ROGUE MODE // 2025.12.08 @ 14:02:47 Player: souux Result: Destroyed by S-43 Plague with Heavy Machine Gun Performance ------------- Evolutions (8) 4000 Regions Visited (14) 2800 Robots Destroyed (196) 980 Value Destroyed (7498) 7498 Prototype IDs (31) 620 Alien Tech Used (2) 400 Bonus (1674) 1674 TOTAL SCORE: 17972 Bonus ------- High Alert Combat Kills 226 Follower Combat Kills 1148 Met Zhirov 300 Cogmind --------- Core Integrity 0/1450 Matter 160/300 Energy 80/100 System Corruption 21% Temperature Cool (0) Movement Core (50) Location -2/Research Parts ------- > --- POWER (2) -------- (None) > --- PROPULSION (8) --- (None) > --- UTILITY (10) ----- Structural Scanner > --- WEAPON (3) ------- (None) > --- INVENTORY (5) ---- F-cell Engine Drone Bay (2/2) Improved Plasma Cutter Peak State ------------ > --- POWER ------------ Micro Antimatter Reactor Micro Antimatter Reactor > --- PROPULSION ------- Improved Heavy Treads Centrium Leg Compact Wheel Compact Wheel Compact Wheel > --- UTILITY ---------- Armored Scrap Engine Advanced Cryofiber Web Advanced Heat Sink Huge Storage Unit Experimental Optical Array Long-range Sensor Array Advanced Signal Interpreter Advanced Terrain Scan Processor Improved Target Analyzer > --- WEAPON ----------- Heavy Particle Gun Nova Cannon KE Penetrator > --- INVENTORY -------- F-cell Engine Neutrino Core Fusion Reactor Improved Heat Sink Huge Storage Unit Structural Scanner Machine Analyzer Advanced Terrain Scanner Seismic Detector Improved Targeting Computer Improved Weapon Cycler Advanced Shield Generator Advanced System Shield Dimensional Node Initializer Transdimensional Reconstructor Integrated Reactor Advanced Remote Datajack Improved Plasma Cutter Power Sword [Rating: 133] Favorites ----------- Power Heavy Ion Engine Engine Heavy Ion Engine Power Core Neutrino Core Reactor Fusion Reactor Propulsion Light Treads Treads Light Treads Leg Aluminum Leg Wheel Compact Wheel Utility Armored Scrap Engine Device Armored Scrap Engine Storage High-capacity Storage Unit Processor Enhanced Optical Array Hackware Advanced Hacking Suite Protection Improved Medium Armor Plating Weapon Heavy Particle Gun Energy Gun Heavy Particle Gun Energy Cannon Heavy Plasma Cannon Ballistic Gun Subdweller Machine Gun Ballistic Cannon Flak Cannon Launcher Advanced EMP Blaster Special Weapon Welding Torch Impact Weapon Powered Hammer Slashing Weapon Power Sword Build | -11 -10 -10 -8 -8 -8 -6 -5 -5 -5 -5 -4 -4 -3 -2 ------- Run | Yrd Mat Sub Mat Sto Rec Fac Fac Upp Upp Zhi Pro Fac Res Res Slots Evolved 16 | . . . 4 . . 4 2 . . . . 2 2 2 Power 1 | . . . . . . . . . . . . 1 . . Propulsion 6 | . . . 2 . . 2 . . . . . . . 2 Utility 8 | . . . 2 . . 2 1 . . . . 1 2 . Weapon 1 | . . . . . . . 1 . . . . . . . Parts Attached 183 | 7 18 14 42 23 8 16 5 3 3 3 5 14 12 10 Power 18 | 1 3 2 3 2 . 1 . 1 . 2 . 1 2 . Engine 14 | 1 3 2 3 2 . 1 . 1 . 1 . . . . Core 1 | . . . . . . . . . . . . 1 . . Reactor 3 | . . . . . . . . . . 1 . . 2 . Propulsion 50 | 2 6 1 14 7 4 5 . 1 3 . . 2 3 2 Treads 30 | . 4 1 10 4 2 3 . 1 3 . . 2 . . Leg 4 | . 2 . . . . . . . . . . . . 2 Wheel 16 | 2 . . 4 3 2 2 . . . . . . 3 . Hover . | . . . . . . . . . . . . . . . Flight . | . . . . . . . . . . . . . . . Utility 73 | 2 6 5 15 9 1 7 5 1 . 1 3 8 6 4 Device 30 | 1 2 2 4 4 1 4 . 1 . . 2 4 3 2 Storage 7 | 1 3 . 1 . . . 1 . . . . 1 . . Processor 11 | . . . 2 1 . . 2 . . . . 2 3 1 Hackware 6 | . . . 1 . . 2 1 . . . . 1 . 1 Protection 19 | . 1 3 7 4 . 1 1 . . 1 1 . . . Artifact . | . . . . . . . . . . . . . . . Weapon 42 | 2 3 6 10 5 3 3 . . . . 2 3 1 4 Energy Gun 16 | 1 . 1 6 2 . 1 . . . . 2 2 . 1 Energy Cannon 12 | . 2 2 . 2 1 2 . . . . . . 1 2 Ballistic Gun 5 | 1 . 2 1 . . . . . . . . 1 . . Ballistic Cannon 2 | . . . 2 . . . . . . . . . . . Launcher 4 | . 1 1 1 1 . . . . . . . . . . Special Weapon 1 | . . . . . 1 . . . . . . . . . Impact Weapon 1 | . . . . . 1 . . . . . . . . . Slashing Weapon 1 | . . . . . . . . . . . . . . 1 Piercing Weapon . | . . . . . . . . . . . . . . . Special Melee Weapon . | . . . . . . . . . . . . . . . Unidentified Prototypes 17 | . . . 4 6 1 1 . . . 2 . 1 . 2 Corrupted Parts 2 | . . . . . . . . . 2 . . . . . System Corruption 11 | . . . . . . . . . 11 . . . . . Parts Lost 44 | . 1 4 5 1 . 5 1 1 . . 5 4 6 11 Power 7 | . 1 2 1 1 . . . . . . 1 . . 1 Propulsion 15 | . . . 1 . . 4 1 . . . 1 1 4 3 Utility 9 | . . . 2 . . 1 . 1 . . 1 . 1 3 Weapon 13 | . . 2 1 . . . . . . . 2 3 1 4 Highest Loss Streak 5 | . 1 2 3 1 . 4 1 1 . . 3 2 3 5 To Critical Strikes 1 | . . . . . . 1 . . . . . . . . Average Backups 19 | 5 11 18 19 22 22 22 17 17 18 21 22 22 20 15 Power 1 | . . . 2 2 2 2 3 2 2 2 1 . 2 1 Propulsion 4 | 3 3 7 6 9 8 5 2 2 2 . . . . . Utility 9 | . 5 7 6 6 6 9 10 10 10 13 13 14 11 9 Weapon 2 | . 1 2 4 4 3 4 2 2 2 1 1 2 1 . Tool/Special . | . . . . . . . . . . . . . . . Unused Backups 32 | . 6 1 5 2 6 4 . . . . . 3 1 4 Power 7 | . 2 . 1 1 1 2 . . . . . . . . Propulsion 9 | . 3 1 . . 5 . . . . . . . . . Utility 8 | . . . 2 1 . 2 . . . . . 2 . 1 Weapon 4 | . 1 . 2 . . . . . . . . 1 . . Tool/Special 4 | . . . . . . . . . . . . . 1 3 Average Slot Usage (%) 90 | . 99 93 99 99 85 85 91 93 94 79 86 83 79 59 Engine 6 | . 14 7 9 9 9 6 5 5 5 4 1 3 . . Treads 18 | . 5 10 21 12 3 13 32 34 35 35 27 20 11 . Wheel 10 | . 17 17 13 23 26 19 2 . . . . . 1 9 Device 13 | . 14 3 12 14 18 17 16 10 11 11 14 13 18 11 Storage 7 | . 14 14 9 9 9 6 5 5 5 5 5 5 4 3 Processor 5 | . . . 3 3 . . 5 11 11 11 7 9 18 14 Protection 5 | . . 10 11 9 3 5 2 3 5 4 4 2 . . Energy Gun 7 | . . 7 5 15 12 2 8 8 5 . 10 9 8 2 Energy Cannon 7 | . 25 12 5 2 1 8 5 3 5 . 4 4 3 2 Ballistic Gun 1 | . . 5 2 . . . . . . . . . 1 2 Launcher 1 | . . 2 . . . . . 3 4 . . . . . Peak Build Rating 133 | 7 9 13 28 30 47 64 71 73 76 81 87 117 131 133 Average Rating 52 | 5 8 10 23 27 36 56 66 70 71 65 83 102 123 93 On Entrance 53 | . 7 9 13 23 30 43 55 69 71 76 81 82 115 124 Avg Prop Armor Cover (%) 10 | . . . 14 10 8 9 6 . . . . 8 10 9 Naked Turns 51 | . . . . . . . . . . . . . . 51 Heaviest Build 135 | 14 54 64 79 107 105 131 78 78 78 117 122 135 135 133 Greatest Support 169 | 26 40 40 80 42 81 81 120 124 133 133 137 169 123 48 Greatest Overweight (x) 6 | . 1 2 3 2 3 3 . . . . 1 1 2 6 Average Overweight (x) . | . . 1 1 2 1 1 . . . . . . 1 1 Largest Inventory Capacity 25 | 8 20 20 25 25 25 25 25 20 20 25 25 25 25 25 Average Capacity 21 | 7 11 20 20 23 25 25 20 20 20 22 25 25 25 21 Most Carried 25 | 8 17 20 20 25 25 25 20 20 20 25 25 25 22 19 Average Carried 19 | 5 11 18 19 22 22 23 17 17 18 21 22 22 20 15 Final Capacity 25 | 8 20 20 20 25 25 25 20 20 20 25 25 25 25 5 Final Carried 25 | 8 17 20 20 24 23 21 18 18 20 25 21 20 19 3 Scrap Engine Consumption 37 | . . . . . 13 9 2 1 4 . 2 2 . 4 Constructs Created 4 | . . . . . 1 . . 1 . . 1 . . 1 Constructs Modified 10 | . . . . . 3 1 . . . . 5 1 . . Class Distribution -------------------- 28% | Scavenger-Skirmisher 22% | Mutant 22% | Scavenger-Mutant 13% | Commander-Mutant 9% | Scavenger-Tank Dominant Class ---------------- Mutant | -10/Materials Mutant | -10/Subcaves Scavenger-Mutant | -8/Materials Commander-Mutant | -8/Storage Commander-Mutant | -8/Recycling Commander-Mutant | -6/Factory Scavenger-Tank | -5/Factory Scavenger-Skirmisher | -5/Upper Caves Scavenger-Skirmisher | -5/Upper Caves Scavenger-Assassin | -5/Zhirov Scavenger-Tank | -4/Proximity Caves Scavenger-Skirmisher | -4/Factory Scavenger-Skirmisher | -3/Research Scavenger-Skirmisher | -2/Research Resources | -11 -10 -10 -8 -8 -8 -6 -5 -5 -5 -5 -4 -4 -3 -2 ----------- Run | Yrd Mat Sub Mat Sto Rec Fac Fac Upp Upp Zhi Pro Fac Res Res Matter Collected 5631 | 290 338 663 1560 405 282 488 160 110 193 75 224 343 467 33 Remotely . | . . . . . . . . . . . . . . . Salvage Created 8946 | 136 892 290 2002 615 97 1135 155 358 1144 97 793 397 722 113 Parts 383 | 9 38 15 102 30 3 48 4 9 39 . 25 21 33 7 Haulers Intercepted 6 | . 2 . 4 . . . . . . . . . . . Recyclers Shooed 2 | . . . 2 . . . . . . . . . . . Parts Field Recycled . | . . . . . . . . . . . . . . . Retrieved Matter . | . . . . . . . . . . . . . . . Parts Self-Destructed 42 | . . 9 . . . . . . 11 . 22 . . . Prevented 42 | . . . . . . . . 8 31 . 3 . . . Parts Restored . | . . . . . . . . . . . . . . . Kills | -11 -10 -10 -8 -8 -8 -6 -5 -5 -5 -5 -4 -4 -3 -2 ------- Run | Yrd Mat Sub Mat Sto Rec Fac Fac Upp Upp Zhi Pro Fac Res Res Combat Hostiles Destroyed 153 | . 14 9 39 11 2 20 2 5 17 . 13 7 11 3 Melee 1 | . . . . . . 1 . . . . . . . . Guns 42 | . . 3 14 6 2 4 2 . . . 3 4 4 . Cannons 65 | . 14 2 18 . . 12 . . 2 . 5 3 7 2 AOE 34 | . . 3 6 5 . 3 . 4 9 . 3 . . 1 Classes Destroyed 15 | 2 6 1 4 . 1 1 . . . . . . . . Worker 6 | . 1 . 2 1 . 2 . . . . . . . . Builder 4 | . . . 1 1 . . . . . . . . 2 . Tunneler 4 | 3 1 . . . . . . . . . . . . . Hauler 6 | . 2 . 4 . . . . . . . . . . . Recycler 14 | 1 3 . 5 2 . 2 . . . . . . 1 . Operator 2 | . 2 . . . . . . . . . . . . . Watcher 7 | . 3 . 4 . . . . . . . . . . . Swarmer 38 | . 6 . 9 3 . 9 . . 1 . 3 . 6 1 Grunt 66 | . 8 . 18 4 . 7 1 5 12 . 9 . 1 1 Brawler 4 | . . . 1 1 . . . . 2 . . . . . Duelist 2 | . . . 1 . . . . . 1 . . . . . Sentry 19 | . . . 10 3 1 1 1 . 1 . 1 1 . . Hunter 1 | . . . . . . 1 . . . . . . . . Programmer 14 | . . . . . 1 2 . . . . . 6 4 1 Subdweller 9 | . . 9 . . . . . . . . . . . . Best Kill Streak 8 | 3 5 3 5 5 1 7 2 5 6 . 7 2 8 2 Combat Bots Only 7 | . 4 3 4 5 1 5 2 5 6 . 7 2 4 2 Max Kills in Single Turn 4 | 1 1 1 3 4 1 3 1 2 4 . 4 1 2 1 Gunslinging . | . . . . . . . . . . . . . . . Exploded 4 | . . 1 2 4 . 2 . 2 4 . 3 . . 1 Melee 1 | . . . . . . 1 . . . . . . . . Uniques/NPCs Destroyed . | . . . . . . . . . . . . . . . Combat | -11 -10 -10 -8 -8 -8 -6 -5 -5 -5 -5 -4 -4 -3 -2 -------- Run | Yrd Mat Sub Mat Sto Rec Fac Fac Upp Upp Zhi Pro Fac Res Res Hostile Shots Fired 1014 | . 70 55 177 72 10 145 5 10 28 . 121 56 96 169 Missed 288 | . 22 16 43 19 2 34 3 4 11 . 34 20 20 60 Hits 726 | . 48 39 134 53 8 111 2 6 17 . 87 36 76 109 Melee 4 | . . . 4 . . . . . . . . . . . Projectile 722 | . 48 39 130 53 8 111 2 6 17 . 87 36 76 109 Critical Strikes 27 | . . 1 4 3 1 4 . 1 1 . 4 1 5 2 Part Disruptions 2 | . . . . . . . . . . . . 1 . 1 Damage Taken 13483 | . 616 846 2133 643 108 1496 31 116 407 . 1759 743 1699 2886 Core 2389 | . 83 166 138 54 . 79 . . 22 . 119 108 229 1391 Absorbed by Shields 369 | . . . . 197 13 39 11 . . . . . . 109 Ignored by Resistances 300 | . . . . . . 300 . . . . . . . . Regen/Repaired (Parts) 726 | . 62 . 266 39 . 11 . 100 . . . 148 . 100 Core Remaining (%) 73 | 100 . . . . 65 90 . . . . 85 90 82 . Volleys Fired 572 | 20 67 68 125 41 7 45 9 25 29 . 32 49 36 19 Largest 3 | 2 2 2 2 2 2 2 3 1 3 . 3 3 3 3 Hottest 243 | 60 120 160 160 128 123 195 210 90 181 . 233 230 243 218 Shots Fired 1010 | 22 124 84 238 72 16 85 19 25 35 . 90 82 94 24 Gun 455 | 22 8 50 118 63 15 7 10 . 3 . 58 38 58 5 Cannon 498 | . 115 22 116 6 1 75 9 18 7 . 30 44 36 19 Launcher 57 | . 1 12 4 3 . 3 . 7 25 . 2 . . . Special . | . . . . . . . . . . . . . . . Kinetic 148 | 20 8 23 70 . . . . . . . . 10 15 2 Thermal 809 | . 115 55 164 69 16 82 19 18 10 . 88 72 79 22 Explosive 11 | . 1 6 4 . . . . . . . . . . . Electromagnetic 42 | 2 . . . 3 . 3 . 7 25 . 2 . . . Robot Hit Streak 32 | 7 16 32 11 12 8 15 7 . 6 . 11 8 10 6 Robot Miss Streak 7 | 4 4 1 7 4 1 3 1 2 1 . 2 2 3 1 Penetration Max 1 | . . . . . . . . . . . . 1 1 . Secondary Targets 1 | . . . 1 . . . . . . . . . . . Max Gunslinging Chain 1 | . . . 1 . . . . . . . . . . . Shots Hit Robots 599 | 16 72 51 158 42 13 58 12 . 11 2 63 36 57 8 Core Hits 337 | 8 30 18 104 24 3 35 5 9 28 . 31 15 24 3 Critical Kills 5 | . . 1 . . . 1 . . . . . 2 1 . Critical Parts Destroyed 3 | . . . . . . . . . . . . 1 2 . Critical Strikes 23 | . . 4 1 2 2 1 . . . . 2 5 6 . Burn 15 | . . 3 1 2 2 . . . . . 2 2 3 . Meltdown 1 | . . 1 . . . . . . . . . . . . Destroy 6 | . . . . . . . . . . . . 3 3 . Smash 1 | . . . . . . 1 . . . . . . . . Melee Attacks 8 | . . . . . 1 5 . . . 2 . . . . Impact 8 | . . . . . 1 5 . . . 2 . . . . Slashing . | . . . . . . . . . . . . . . . Piercing . | . . . . . . . . . . . . . . . Sneak Attacks . | . . . . . . . . . . . . . . . Combat Hostiles . | . . . . . . . . . . . . . . . Follow-up Attacks . | . . . . . . . . . . . . . . . Damage Inflicted 19208 | 141 1290 1018 4334 1098 313 2329 309 506 2409 232 2070 1123 1697 339 Guns 6175 | 141 67 418 1353 805 292 126 181 . 42 . 1003 703 959 85 Cannons 7570 | . 1193 228 2189 . 21 1647 128 . 99 . 672 420 738 235 Explosions 5115 | . 30 372 792 293 . 459 . 506 2268 . 395 . . . Melee 313 | . . . . . . 81 . . . 232 . . . . Ramming 35 | . . . . . . 16 . . . . . . . 19 Kinetic 2184 | 111 67 296 1204 . . . . . . . . 263 224 19 Thermal 13459 | . 1193 603 2849 926 313 2066 309 . 636 . 1930 860 1473 301 Explosive 430 | . 30 119 281 . . . . . . . . . . . Electromagnetic 2787 | 30 . . . 172 . 166 . 506 1773 . 140 . . . Impact 313 | . . . . . . 81 . . . 232 . . . . Slashing . | . . . . . . . . . . . . . . . Piercing . | . . . . . . . . . . . . . . . Highest Corruption 21 | . 1 1 . 1 1 3 . . 12 12 12 6 7 21 Average Corruption 3 | . 1 1 . 1 1 2 . . 3 12 12 2 2 12 Corruption Purged . | . . . . . . . . . . . . . . . Corruption Blocked . | . . . . . . . . . . . . . . . Effects 181 | . 1 18 . 3 16 15 . . 22 14 52 16 4 20 Message Errors 38 | . . 3 . 1 4 2 . . 5 4 13 2 2 2 Matter Fused 36 | . . 2 . 1 3 5 . . 1 6 7 6 1 4 Heat Flow Errors 13 | . . 2 . . 1 1 . . 2 . 3 2 . 2 Energy Discharges 38 | . 1 4 . . 4 1 . . 7 4 11 4 1 1 Parts Rejected 4 | . . . . . 1 1 . . . . . . . 2 Parts Fused 1 | . . . . . . . . . . . 1 . . . Data Loss (minor) 25 | . . 5 . . 1 3 . . 4 . 9 . . 3 Data Loss (major) 6 | . . . . 1 . . . . 1 . 3 1 . . Misfires 8 | . . 1 . . 2 1 . . 2 . 2 . . . Alerts 4 | . . 1 . . . . . . . . 2 . . 1 Misdirections 5 | . . . . . . . . . . . . . . 5 Weapon Failures 3 | . . . . . . 1 . . . . 1 1 . . Overload Shots 3 | . . . . . . 3 . . . . . . . . Overflow Damage 554 | . 2 . 307 . . 41 . . 19 93 22 6 62 2 Projectiles 171 | . 2 . 42 . . 41 . . 16 . . 6 62 2 Explosions 290 | . . . 265 . . . . . 3 . 22 . . . Melee 93 | . . . . . . . . . . 93 . . . . Knockbacks 13 | . . . 13 . . . . . . . . . . . Impact . | . . . . . . . . . . . . . . . Kinetic 10 | . . . 10 . . . . . . . . . . . Secondary 3 | . . . 3 . . . . . . . . . . . Self-Inflicted Damage 300 | . . 20 99 . . 108 . . 64 . . . . 9 Shots 7 | . . 1 1 . . 2 . . 3 . . . . . Rammed 3 | . . . . . . 1 . . . . . . . 2 Targets Rammed 3 | . . . . . . 1 . . . . . . . 2 Kicked . | . . . . . . . . . . . . . . . Crushed . | . . . . . . . . . . . . . . . Highest Temperature 497 | 20 280 129 356 49 103 425 166 168 148 . 225 360 497 206 Average Temperature 77 | 15 78 20 81 15 18 77 58 58 55 . 71 96 134 67 Received Heat Transfer 2690 | . 240 51 972 233 6 239 12 63 114 . 443 18 92 207 Effects 9 | . . . . . . 1 . . . . . 3 5 . Shutdowns 3 | . . . . . . 1 . . . . . 1 1 . Energy Bleed 1 | . . . . . . . . . . . . 1 . . Interference 3 | . . . . . . . . . . . . . 3 . Matter Decay 2 | . . . . . . . . . . . . 1 1 . Siege Activations . | . . . . . . . . . . . . . . . Martial Activations . | . . . . . . . . . . . . . . . Shielding Activations . | . . . . . . . . . . . . . . . Robots Disrupted . | . . . . . . . . . . . . . . . Combat Hostiles . | . . . . . . . . . . . . . . . Robots Corrupted 8 | . . . . . . . . 1 6 1 . . . . Combat Hostiles 8 | . . . . . . . . 1 6 1 . . . . Parts Fried 12 | . . . . . . . . 5 6 1 . . . . Impact Corruptions 2 | . . . . . . . . . . 2 . . . . Robots Melted 4 | . . 1 1 . . . . . . . 2 . . . Combat Hostiles 4 | . . 1 1 . . . . . . . 2 . . . Parts Melted 58 | . 4 2 7 4 1 3 . . . . 15 9 13 . Heat Transferred 22199 | . 2516 1554 4309 1989 666 2859 496 . 724 . 3103 1457 2267 259 Parts Sabotaged . | . . . . . . . . . . . . . . . Parts Stolen . | . . . . . . . . . . . . . . . Parts Stripped . | . . . . . . . . . . . . . . . Power Chain Reactions 10 | . . . . 3 . 2 . 1 4 . . . . . Alert | -11 -10 -10 -8 -8 -8 -6 -5 -5 -5 -5 -4 -4 -3 -2 ------- Run | Yrd Mat Sub Mat Sto Rec Fac Fac Upp Upp Zhi Pro Fac Res Res Maximum Alert Level 3 | . 1 . 2 3 1 2 1 . . . . . 1 . Low Security (%) 75 | 100 99 . 56 . 73 78 80 . . . . 100 96 100 Level 1 14 | . . . 28 20 26 18 19 . . . . . 3 . Level 2 8 | . . . 14 58 . 3 . . . . . . . . Level 3 1 | . . . . 21 . . . . . . . . . . Level 4 . | . . . . . . . . . . . . . . . Level 5 . | . . . . . . . . . . . . . . . High Security . | . . . . . . . . . . . . . . . Max Security . | . . . . . . . . . . . . . . . Peak Influence 905 | 5 204 . 658 905 367 605 273 . . . . 81 207 142 Initial 347 | . . . . 274 347 . 273 . . . . 36 18 102 Average 144 | 2 69 . 209 575 117 124 111 . . . . 16 31 30 Influence Increases 6413 | 20 503 . 1298 1281 98 1197 75 125 524 5 315 329 357 286 Destroy 0b10 Robot/C 3480 | . 280 . 780 580 80 580 40 100 360 . 260 140 220 60 Destroy 0b10 Robot/NC 230 | 20 60 . 80 30 . 20 . . . 5 . . 15 . Destroy Leader 680 | . 60 . 196 164 . 100 10 10 30 . 10 40 50 10 Allied During Kill 444 | . . . . 317 4 109 . . 14 . . . . . Successful Hack 81 | . 16 . 32 12 13 . . . . . . 8 . . Disable Machine 480 | . 15 . 75 75 . 270 . . . . . 45 . . Destroy Structure 328 | . 12 . 75 28 1 43 10 . . . . 96 42 21 Partial Spotted 30 | . . . . 15 . . . . . . . . . 15 Lose Combat Pursuer 660 | . 60 . 60 60 . 75 15 15 120 . 45 . 30 180 Influence Decreases 6282 | 20 502 1 646 1042 989 638 634 125 417 112 257 351 210 338 Entered New Map 1437 | . . 1 . 378 544 . 286 . . 107 . 22 18 81 Time Decay 4128 | 20 492 . 600 474 445 458 268 125 377 5 217 303 150 194 Lost Part 297 | . 10 . 46 10 . 50 10 . . . 40 26 42 63 Lost Ally 350 | . . . . 180 . 130 . . 40 . . . . . Purge Threat 70 | . . . . . . . 70 . . . . . . . Squads Dispatched 37 | . 3 . 7 7 . 6 1 . 1 . 1 4 5 2 Investigation 6 | . 1 . 2 2 . . . . . . 1 . . . Extermination 12 | . . . . . . 4 1 . . . . 3 2 2 Reinforcement 9 | . 2 . 2 2 . 2 . . . . . 1 . . Assault 1 | . . . . . . . . . 1 . . . . . Garrison 9 | . . . 3 3 . . . . . . . . 3 . Intercept . | . . . . . . . . . . . . . . . Searches Triggered . | . . . . . . . . . . . . . . . Construction Impeded 2 | . . . 1 . . 1 . . . . . . . . Haulers Reinforced 1 | . . . . . . 1 . . . . . . . . Active Scanning Responses . | . . . . . . . . . . . . . . . Cargo Convoy Interrupts . | . . . . . . . . . . . . . . . Stealth | -11 -10 -10 -8 -8 -8 -6 -5 -5 -5 -5 -4 -4 -3 -2 --------- Run | Yrd Mat Sub Mat Sto Rec Fac Fac Upp Upp Zhi Pro Fac Res Res Distress Signals 8 | . 1 . 2 2 1 . . . . . . . 1 1 Communications Jammed . | . . . . . . . . . . . . . . . Distress Signals . | . . . . . . . . . . . . . . . Times Spotted 258 | . 27 10 53 31 4 34 4 5 23 . 14 11 13 29 Peak Tracking Total 18 | . 4 3 4 6 1 4 2 5 7 . 4 4 5 18 Tactical Retreats 23 | . 3 . 3 3 . 2 1 1 3 . 1 . 1 5 Traps | -11 -10 -10 -8 -8 -8 -6 -5 -5 -5 -5 -4 -4 -3 -2 ------- Run | Yrd Mat Sub Mat Sto Rec Fac Fac Upp Upp Zhi Pro Fac Res Res Traps Triggered 8 | . 2 . 2 1 . . 1 . . . . . . 2 Indirectly . | . . . . . . . . . . . . . . . Trap Hack Attempts . | . . . . . . . . . . . . . . . Triggered . | . . . . . . . . . . . . . . . Disarmed . | . . . . . . . . . . . . . . . Reprogrammed . | . . . . . . . . . . . . . . . Reused . | . . . . . . . . . . . . . . . Traps Extracted . | . . . . . . . . . . . . . . . Installed . | . . . . . . . . . . . . . . . Triggered . | . . . . . . . . . . . . . . . Machines | -11 -10 -10 -8 -8 -8 -6 -5 -5 -5 -5 -4 -4 -3 -2 ---------- Run | Yrd Mat Sub Mat Sto Rec Fac Fac Upp Upp Zhi Pro Fac Res Res Machines Disabled 35 | . 1 . 5 5 . 18 . 1 . . 2 3 . . Max in Single Turn 12 | . 1 . 2 1 . 12 . 1 . . 2 3 . . Garrison Access 4 | . . . 1 . . . 2 . . . . 1 . . Machines Repaired . | . . . . . . . . . . . . . . . Machines Dismantled . | . . . . . . . . . . . . . . . Machines Sabotaged . | . . . . . . . . . . . . . . . Overloaded Fab Kills . | . . . . . . . . . . . . . . . Hacking | -11 -10 -10 -8 -8 -8 -6 -5 -5 -5 -5 -4 -4 -3 -2 --------- Run | Yrd Mat Sub Mat Sto Rec Fac Fac Upp Upp Zhi Pro Fac Res Res Machines Accessed 53 | . 6 . 11 8 5 5 3 1 . 9 1 3 . 1 Terminals 30 | . 5 . 8 6 4 3 1 . . . 1 1 . 1 Fabricators . | . . . . . . . . . . . . . . . Repair Stations 3 | . 1 . 1 1 . . . . . . . . . . Recycling Units . | . . . . . . . . . . . . . . . Scanalyzers 4 | . . . 1 . . 2 . . . . . 1 . . Garrison Access 5 | . . . 1 1 . . 2 . . . . 1 . . Total Hacks 175 | . 19 . 30 24 19 13 7 1 . 48 4 9 . 1 Successful 117 | . 9 . 22 10 11 5 4 1 . 48 4 3 . . Failed 58 | . 10 . 8 14 8 8 3 . . . . 6 . 1 Catastrophic 7 | . . . 1 3 . . 1 . . . . 1 . 1 Database Lockouts . | . . . . . . . . . . . . . . . Manual 73 | . 15 . 18 11 17 6 2 . . . . 3 . 1 Terminals 87 | . 16 . 18 15 17 11 2 . . . 4 3 . 1 Fabricators . | . . . . . . . . . . . . . . . Repair Stations 12 | . 3 . 5 4 . . . . . . . . . . Recycling Units . | . . . . . . . . . . . . . . . Scanalyzers 11 | . . . 6 . . 2 . . . . . 3 . . Garrison Access 14 | . . . 1 5 . . 5 . . . . 3 . . Terminal Hacks 63 | . . . . 3 4 2 1 1 . 48 4 . . . Record 41 | . . . . . . . . 1 . 36 4 . . . Part Schematic 4 | . . . . . . . . . . 4 . . . . Robot Analysis 4 | . . . . . . . . . . 4 . . . . Prototype ID Bank 6 | . . . . . 1 1 . . . 4 . . . . Open Door 3 | . . . . 3 . . . . . . . . . . Terminal Index 1 | . . . . . . 1 . . . . . . . . Unreport Threat 2 | . . . . . 1 . 1 . . . . . . . Release Object 2 | . . . . . 2 . . . . . . . . . Fabricator Hacks . | . . . . . . . . . . . . . . . Repair Station Hacks 9 | . 2 . 4 3 . . . . . . . . . . Scan Component 5 | . 1 . 2 2 . . . . . . . . . . Repair 4 | . 1 . 2 1 . . . . . . . . . . Recycling Unit Hacks . | . . . . . . . . . . . . . . . Scanalyzer 8 | . . . 6 . . . . . . . . 2 . . Retrieve Study 8 | . . . 6 . . . . . . . . 2 . . Garrison Access Hacks 4 | . . . 1 . . . 2 . . . . 1 . . Seal Access 4 | . . . 1 . . . 2 . . . . 1 . . Unauthorized Hacks 33 | . 7 . 11 4 7 3 1 . . . . . . . Terminals 33 | . 7 . 11 4 7 3 1 . . . . . . . Botnet 14 | . 3 . 5 1 3 2 . . . . . . . . Skim 19 | . 4 . 6 3 4 1 1 . . . . . . . Fabricators . | . . . . . . . . . . . . . . . Repair Stations . | . . . . . . . . . . . . . . . Recycling Units . | . . . . . . . . . . . . . . . Scanalyzers . | . . . . . . . . . . . . . . . Garrison Access . | . . . . . . . . . . . . . . . Data Cores Recovered . | . . . . . . . . . . . . . . . Used . | . . . . . . . . . . . . . . . Hacking Detections 41 | . 6 . 10 8 4 5 3 . . . 1 3 . 1 Full Trace Events 4 | . . . . 3 . . . . . . 1 . . . Feedback Events 1 | . . . . 1 . . . . . . . . . . Corruption 1 | . . . . 1 . . . . . . . . . . Feedback Blocked . | . . . . . . . . . . . . . . . Robot Schematics Acquired . | . . . . . . . . . . . . . . . Robots Built . | . . . . . . . . . . . . . . . Authchips . | . . . . . . . . . . . . . . . Time . | . . . . . . . . . . . . . . . Total Robot Build Rating . | . . . . . . . . . . . . . . . Part Schematics Acquired 4 | . . . . . . . . . . 4 . . . . Parts Built . | . . . . . . . . . . . . . . . Authchips . | . . . . . . . . . . . . . . . Time . | . . . . . . . . . . . . . . . Total Part Build Rating . | . . . . . . . . . . . . . . . Part Studies Acquired 8 | . . . 6 . . . . . . . . 2 . . Parts Repaired 4 | . 1 . 2 1 . . . . . . . . . . Time 114 | . 26 . 52 36 . . . . . . . . . . Parts Recycled . | . . . . . . . . . . . . . . . Recycled Matter . | . . . . . . . . . . . . . . . Retrieved Matter . | . . . . . . . . . . . . . . . Retrieved Components . | . . . . . . . . . . . . . . . Parts Scanalyzed . | . . . . . . . . . . . . . . . Part Schematics Acquired . | . . . . . . . . . . . . . . . Parts Damaged . | . . . . . . . . . . . . . . . Bothacking | -11 -10 -10 -8 -8 -8 -6 -5 -5 -5 -5 -4 -4 -3 -2 ------------ Run | Yrd Mat Sub Mat Sto Rec Fac Fac Upp Upp Zhi Pro Fac Res Res Used RIF Installer . | . . . . . . . . . . . . . . . Robots Hacked . | . . . . . . . . . . . . . . . Non-combat . | . . . . . . . . . . . . . . . Combat . | . . . . . . . . . . . . . . . Robot Hacks Applied . | . . . . . . . . . . . . . . . Relay Couplers Released . | . . . . . . . . . . . . . . . Fabnet Peak Effective % . | . . . . . . . . . . . . . . . Robots Rewired 11 | . . . . . 9 . . . 2 . . . . . Allies Hacked . | . . . . . . . . . . . . . . . Hacks Repelled . | . . . . . . . . . . . . . . . Allies | -11 -10 -10 -8 -8 -8 -6 -5 -5 -5 -5 -4 -4 -3 -2 -------- Run | Yrd Mat Sub Mat Sto Rec Fac Fac Upp Upp Zhi Pro Fac Res Res Total Allies 21 | . . . . 10 9 . . . 2 . . . . . Largest Group 10 | . . . . 10 9 9 . . 2 . . . . . Highest-Rated Group 173 | . . . . 173 162 161 . . 59 . . . . . Highest-Rated Ally 30 | . . . . 29 27 27 . . 30 . . . . . Total Orders 2 | . . . . . . . . . . . . . . 2 EXPLORE 1 | . . . . . . . . . . . . . . 1 RETURN 1 | . . . . . . . . . . . . . . 1 Ally Attacks 186 | . . . . 131 14 33 . . 8 . . . . . Total Damage 2984 | . . . . 1757 359 752 . . 116 . . . . . Kills 37 | . . . . 21 5 10 . . 1 . . . . . Allies Corrupted . | . . . . . . . . . . . . . . . Allies Melted 1 | . . . . . . . . . 1 . . . . . Intel | -11 -10 -10 -8 -8 -8 -6 -5 -5 -5 -5 -4 -4 -3 -2 ------- Run | Yrd Mat Sub Mat Sto Rec Fac Fac Upp Upp Zhi Pro Fac Res Res Active Infowar (turns) 15025 | 61 1640 483 2114 651 378 738 824 1097 1989 350 1337 1777 1042 544 Optics 10624 | . . 31 1332 424 . . 823 1097 1989 350 1337 1715 1025 501 Sensors 6535 | . . . . . . . . 1087 1989 350 330 1493 817 469 Terrain 979 | . . . . . . . . . . . 162 . 720 97 Structural 2902 | . . . . . . 733 311 . . . . 1166 692 . Seismic 5507 | 61 1640 452 1535 227 378 499 434 . . . 165 73 . 43 Machine Analysis 110 | . . . . . . . . . . . . . . 110 Robot Analysis Total 4 | . . . . . . . . . . 4 . . . . Derelict Logs Recovered 5 | . . 2 . . . . . 1 2 . . . . . Drone Launches 1 | . . . . . . . . . . . . . . 1 Drone Recoveries 1 | . . . . . . . . . . . . . . 1 Exploration | -11 -10 -10 -8 -8 -8 -6 -5 -5 -5 -5 -4 -4 -3 -2 ------------- Run | Yrd Mat Sub Mat Sto Rec Fac Fac Upp Upp Zhi Pro Fac Res Res Turns Passed 20744 | 109 2045 2041 2821 1218 1557 1820 824 1097 1989 350 1337 1871 1042 623 Spaces Moved 10138 | 58 984 1006 1142 640 727 945 473 644 1134 203 614 741 400 427 Core 218 | 8 . . . . . . . . . . . . . 210 Treads 4489 | . 66 202 52 . 4 21 473 644 1134 203 614 741 335 . Legs 1 | . 1 . . . . . . . . . . . . . Wheels 5430 | 50 917 804 1090 640 723 924 . . . . . . 65 217 Hover . | . . . . . . . . . . . . . . . Flight . | . . . . . . . . . . . . . . . Fastest Speed 50 | 50 90 105 105 110 100 128 160 157 157 157 164 165 120 50 Average Speed 143 | 84 100 137 121 112 126 140 160 158 158 157 177 207 217 87 Slowest Speed 297 | 90 240 240 240 113 200 280 160 159 159 157 229 229 297 180 Overloaded Moves . | . . . . . . . . . . . . . . . Propulsion Burnouts . | . . . . . . . . . . . . . . . Robots Hopped . | . . . . . . . . . . . . . . . Potential Cave-ins . | . . . . . . . . . . . . . . . Cave-ins Triggered . | . . . . . . . . . . . . . . . Teleports 1 | . . . . . . . . . . . . . . 1 Exploration Rate (%) 52 | 4 100 37 74 74 99 29 13 81 95 63 78 22 9 15 Regions Visited 14 Branch Regions 7 Pre-discovered Areas 4 | . . 1 . . . . . . . 3 . . . . Known Exits Taken 10 | . . . 1 1 . 1 1 1 1 1 1 1 1 . Unknown Exits Taken 4 | 1 1 1 . . 1 . . . . . . . . . Scrap Searched 15 | . . 7 . . . . . 2 3 . 3 . . . Spaces Dug 138 | . 7 33 20 4 1 9 4 7 12 . . 25 6 10 Terrain Destroyed 423 | . 7 108 86 26 1 40 5 17 25 . 23 55 17 13 Melee 3 | . . . . . 1 2 . . . . . . . . Projectile 130 | . . 2 21 2 . 10 5 17 4 . 8 31 17 13 AOE 290 | . 7 106 65 24 . 28 . . 21 . 15 24 . . Terrain Rammed . | . . . . . . . . . . . . . . . Walls Destroyed . | . . . . . . . . . . . . . . . Machines Disabled . | . . . . . . . . . . . . . . . Actions | -11 -10 -10 -8 -8 -8 -6 -5 -5 -5 -5 -4 -4 -3 -2 --------- Run | Yrd Mat Sub Mat Sto Rec Fac Fac Upp Upp Zhi Pro Fac Res Res Total 15346 | 96 1915 1567 2311 1071 1350 1344 524 695 1293 231 792 1004 501 652 Wait 3656 | 3 789 413 826 309 487 267 20 15 47 6 122 156 25 171 Move 10124 | 57 983 1005 1141 639 726 944 472 643 1133 202 613 740 399 427 Hop . | . . . . . . . . . . . . . . . Pick Up 164 | 9 22 20 42 15 9 18 3 1 5 5 4 7 1 3 Fast Attach 78 | 6 3 5 11 8 4 2 4 . 2 5 1 12 10 5 Attach 62 | 1 1 2 11 3 1 11 6 2 . 2 3 7 4 8 Detach 26 | . . 1 1 2 3 2 1 2 . 2 . 6 3 3 Swap 313 | . 31 35 103 26 20 33 7 5 4 2 10 13 17 7 Drop 196 | . 19 18 51 26 18 16 2 2 5 5 7 14 6 7 Fire 572 | 20 67 68 125 41 7 45 9 25 29 . 32 49 36 19 Melee 8 | . . . . . 1 5 . . . 2 . . . . Ram 3 | . . . . . . 1 . . . . . . . 2 Kick . | . . . . . . . . . . . . . . . Crush . | . . . . . . . . . . . . . . . Escape Stasis . | . . . . . . . . . . . . . . . Rewire 144 | . . . . 2 74 . . . 68 . . . . . Trap . | . . . . . . . . . . . . . . . Miscellaneous . | . . . . . . . . . . . . . . . Route ------- -11/Scrapyard -10/Materials (discovered 5 exits: [*Mat x3] / [*Min] / [*Sub]) -10/Subcaves (discovered 2 exits: *Mat / Rec) -8/Materials (discovered 4 exits: [*Fac x2] / *Sto x2) -8/Storage -8/Recycling -6/Factory (discovered 2 exits: *Fac x2) -5/Factory -5/Upper Caves -5/Upper Caves (discovered 2 exits: *Fac / *Zhi) -5/Zhirov -4/Proximity Caves -4/Factory (discovered 2 exits: *Res / [*Upp]) -3/Research -2/Research History --------- Turn | Location | Event 19 | -11/Scrapyard | Discovered new exit (range 15) 110 | -11/Scrapyard | Entered Materials 312 | -10/Materials | Build established: Mutant 586 | -10/Materials | Discovered new exit (range 3) 665 | -10/Materials | Repaired Beam Cannon 979 | -10/Materials | Discovered new exit (range 13) 1850 | -10/Materials | Discovered new exit (range 16) 2052 | -10/Materials | Discovered new exit (range 5) 2110 | -10/Materials | Discovered new exit (range 13) 2155 | -10/Materials | Entered Subcaves 2156 | -10/Subcaves | Approached by a straggling Scientist 2164 | -10/Subcaves | A swath of the cavern ceiling suddenly collapsed 2353 | -10/Subcaves | Core integrity fell below 50% 2496 | -10/Subcaves | Learned location of Storage (-8) 2594 | -10/Subcaves | Core integrity fell below 20% 2615 | -10/Subcaves | Discovered new exit (range 15) 2729 | -10/Subcaves | Identified exit to Recycling 2935 | -10/Subcaves | Shifting Twisted Machinery released Sub. Shrapnel Launcher 3003 | -10/Subcaves | Shifting Twisted Machinery released Sub. Monowheel 3637 | -10/Subcaves | Shifting Twisted Machinery released Sub. Shrapnel Launcher 3891 | -10/Subcaves | Ambushed by Subdweller buried in earth 4196 | -10/Subcaves | Entered Materials 4196 | -8/Materials | Evolved 4 slots: Propulsion x2, Utility x2 4497 | -8/Materials | Build established: Scavenger-Mutant 4660 | -8/Materials | Discovered new exit (range 16) 5035 | -8/Materials | Lost 3 parts (1n2u) 5450 | -8/Materials | Discovered new exit (range 15) 5518 | -8/Materials | Learned 2 Storage zone layouts 5549 | -8/Materials | Garrison activated, responded to threat 5571 | -8/Materials | Learned Factory fabricator intel 5613 | -8/Materials | Learned 8 Factory zone layouts 5646 | -8/Materials | Identified exit to Storage 5671 | -8/Materials | Learned location of 1 exit from Storage 5707 | -8/Materials | Learned Factory security intel 5754 | -8/Materials | Learned 8 Factory zone layouts 5862 | -8/Materials | Repaired Lgt. Treads 5889 | -8/Materials | Repaired Lgt. Treads 6826 | -8/Materials | Discovered exit to Storage (range 9) 7017 | -8/Materials | Entered Storage 7051 | -8/Storage | Assisted by bots powering up and referring to "LRC-V3" 7361 | -8/Storage | Build established: Commander-Mutant 7460 | -8/Storage | Used back door to open Recycling access 7648 | -8/Storage | Repaired Broken Wheel+ 8019 | -8/Storage | Lost 3 allies 8075 | -8/Storage | Build established: Scavenger-Mutant 8235 | -8/Storage | Entered Recycling 8861 | -8/Recycling | Entered Scraplab 8868 | -8/Recycling | Found Prototype Device 8868 | -8/Recycling | Identified Scrap Engine 9003 | -8/Recycling | Build established: Commander-Mutant 9336 | -8/Recycling | Discovered new exit (range 15) 9792 | -8/Recycling | Entered Factory 9792 | -6/Factory | Accompanied by 9 allies 9792 | -6/Factory | Evolved 4 slots: Propulsion x2, Utility x2 9793 | -6/Factory | Identified exit to Factory 9795 | -6/Factory | Loaded intel: 5 fabricator locations 10533 | -6/Factory | P-60 Hacker assimilated allied Commando 3b 10819 | -6/Factory | Lost 3 allies 11230 | -6/Factory | Build established: Mutant 11545 | -6/Factory | Build established: Scavenger-Mutant 11582 | -6/Factory | Spotted B-75 Beast 11612 | -6/Factory | Entered another Factory area 11612 | -5/Factory | Evolved 2 slots: Utility x1, Weapon x1 11642 | -5/Factory | Lost 4 parts (3n1u) 12225 | -5/Factory | Build established: Scavenger-Tank 12392 | -5/Factory | Discovered new exit (range 11) 12416 | -5/Factory | Identified exit to Upper Caves 12436 | -5/Factory | Entered Upper Caves 12749 | -5/Upper Caves | Build established: Scavenger-Skirmisher 13096 | -5/Upper Caves | Learned 8 Factory zone layouts 13472 | -5/Upper Caves | Found Alien Artifact 13492 | -5/Upper Caves | Discovered new exit (range 7) 13501 | -5/Upper Caves | Identified exit to Upper Caves 13533 | -5/Upper Caves | Entered another Upper Caves area 13553 | -5/Upper Caves | Discovered new exit (range 10) 13565 | -5/Upper Caves | Identified exit to Factory 13592 | -5/Upper Caves | Learned Factory non-interactive machine intel 13759 | -5/Upper Caves | Attracted the attention of an 0b10 outpost 14072 | -5/Upper Caves | Learned 4 Factory zone layouts 15196 | -5/Upper Caves | System corruption reached 10% 15464 | -5/Upper Caves | Discovered new exit (range 21) 15520 | -5/Upper Caves | Identified exit to Zhirov 15522 | -5/Upper Caves | Entered Zhirov 15530 | -5/Zhirov | Discovered new exit (range 3) 15558 | -5/Zhirov | Met Zhirov 15590 | -5/Zhirov | Learned location of Quarantine (-2) 15590 | -5/Zhirov | Learned location of Testing (-3) 15590 | -5/Zhirov | Learned location of Command (-1) 15623 | -5/Zhirov | Zhirov requested help retrieving the SGEMP Prototype 15776 | -5/Zhirov | Found Alien Artifact 15794 | -5/Zhirov | Found Alien Artifact 15871 | -5/Zhirov | Identified exit to Proximity Caves 15872 | -5/Zhirov | Entered Proximity Caves 16207 | -4/Proximity Caves | Attracted the attention of an 0b10 checkpoint 16249 | -4/Proximity Caves | Spotted B-86 Titan 16504 | -4/Proximity Caves | Build established: Scavenger-Tank 16782 | -4/Proximity Caves | Attracted the attention of an 0b10 base 16838 | -4/Proximity Caves | Destroyed 7 combat bots 16838 | -4/Proximity Caves | Learned Extension emergency access door positions 16838 | -4/Proximity Caves | Learned Armory security intel 16838 | -4/Proximity Caves | Learned Factory garrison access intel 16838 | -4/Proximity Caves | Learned Factory trap positions 16945 | -4/Proximity Caves | Lost 3 parts (1n1u1w) 17108 | -4/Proximity Caves | Discovered exit to Factory (range 3) 17209 | -4/Proximity Caves | Entered Factory 17209 | -4/Factory | Evolved 2 slots: Power x1, Utility x1 17211 | -4/Factory | Loaded intel: 84 trap records 17212 | -4/Factory | Loaded intel: 200 non-interactive machine locations 17213 | -4/Factory | Loaded intel: 3 garrison access locations 17503 | -4/Factory | Build established: Scavenger-Skirmisher 18046 | -4/Factory | Discovered new exit (range 17) 18177 | -4/Factory | Discovered new exit (range 18) 18778 | -4/Factory | Build established: Scavenger-Tank 18794 | -4/Factory | Identified exit to Research 19080 | -4/Factory | Entered Research 19080 | -3/Research | Evolved 2 slots: Utility x2 19128 | -3/Research | Discovered new exit (range 21) 19496 | -3/Research | Identified exit to Research 19823 | -3/Research | Build established: Scavenger-Skirmisher 19914 | -3/Research | Garrison activated, responded to threat 19987 | -3/Research | Lost 3 parts (1n1u1w) 20122 | -3/Research | Entered another Research area 20122 | -2/Research | Evolved 2 slots: Propulsion x2 20498 | -2/Research | System corruption reached 10% 20499 | -2/Research | Identified Dimensional Node Initializer 20499 | -2/Research | Initialized slip node 20500 | -2/Research | Identified Transdimensional Reconstructor 20500 | -2/Research | Warped through subspace to slip node 20531 | -2/Research | Lost 4 parts (1p1n2w) 20623 | -2/Research | Released all parts (9) 20653 | -2/Research | Lost 5 parts (2n2u1w) 20703 | -2/Research | Core integrity fell below 50% 20724 | -2/Research | Core integrity fell below 20% 20745 | -2/Research | Destroyed by S-43 Plague with Heavy Machine Gun Last Messages --------------- 20687_ Slug penetrates Door. 20687_ Penetrated by Slug. 20690_ Slug penetrates Wall. 20698_ System corrupted: Imp. Thunder Leg rejected. 20712_ U-05 Engineer works on Meson Extractor. 20713_ S-43 Plague destroyed. 20714_ Enh. Nova Cannon destroyed. 20716_ Acquired 33 matter. 20717_ Slammed into S-43 Plague. 20717_ U-05 Engineer works on Meson Extractor. 20718_ Slammed into S-43 Plague. 20720_ C-30 ARC bursts open, deploying its payload. 20720_ G-73 Enforcer unfolds itself. 20720_ Critical hit (Burn: +37). 20725_ P-80 Master resets G-73 Enforcer, system corruption cleaned. 20743_ Penetrated by Slug. 20743_ Slug penetrates Wall. Map ----- +----------------------------------------------------+ | ?????????????????????????????????????????????????# | | ?????????????????????????????????????????????????? | | ?????????????????????????????????????????????????? | | ????????????????????????????????????????????????## | | ?????????????????????????????????????????###????# | | ?????????????????????????????????????????# =????# | | ??????????????##############?????????????# ???# | | ??????????????# #?????????????#"" ???# | | ??????????????# #?????????????#"F ??# | | ??????????????# """ """ #?????????????#"" ??# | | ??????????????# """ """ #???###########"" ?# | | ??????????????# """ """ #???# ] # ?# | | ??????????????# #???# # #= | | ??????????????# #???# # # | | ??????????????# """ """ #???# "" # " | | ??????????????# """ """ #???# "" # # | | ??????????????# """ """ #???# * # # | | ??????????????# #???# =* # * ?# | | ??????????????# p #???# = [ # ?# | | ??????????????#######s#/##############/########## | | ????????????????????# s "%" | | ????????????????????# " | | ????????????????????# s | | ????????????????????# | | ???????????????????#####;##################/##### | | ???????????????????# @ #????????????? ??# | | ???????????????????# #?????????????? ?# | | ???????????????????# #??????????????? # | | ???????????????????# "F "" #???????????????? # | | ???????????????????# """"" #????????#???????? # | | ???????????????????# """"" #??????? #?????????# | | ???????????????????# #?????? #?????????# | | ???????????????????# #????? ??????????# | | ???????????????????################+######+###### | | ????????????????????# | | ????????????????????# | | ????????????????????# | | ????????????????????# | | ????????????????????# ###########"T####+####### | | ???????????#######??# #?????????#""#?? ?????? | | ???????????# ?# #?????????####?? ?????? | | ??????????## ?# #??""""???????? """ ????? | | ?????????#?# "" # #??""""???????? "T" ????? | | ?????????### "" # #??""""??????? ???? | | ????#?##?### "T + +? """"??????? ???? | | ??##??????## "" # #? ??????????# !! ??? | | ??##?####??# "" # #????????????# !! ??? | | ?######?#### #!! #????????????# !! #?? | | ????###?####! # ! ###########??##?###?###?? | | ?##?##############??#!|! # #?????????????? | +----------------------------------------------------+ Best States ------------- Heat Dissipation 87 Energy Generation 37 Energy Capacity 695 Matter Stores 300 Matter Capacity 300 Sight Range 23 Robot Scan Range 18 Terrain Scan Range 20 Terrain Scan Density 210 Base Temperature (-) 200 Armor Coverage 600 Resistance: KI 30 Weapon Cycling 20 Evasion (%) 50 Target Analysis 6 Recoil Reduction 6 Offensive Hacking 14 Defensive Hacking 14 Item Schematics ----------------- Assault Drone Bay | -5/Zhirov | Free Exp. Heat Sink | -5/Zhirov | Free Exp. Optical Array | -5/Zhirov | Free Imp. Arc Thrower | -5/Zhirov | Free Robot Schematics ------------------ None Fabricated ------------ Nothing Repaired ---------- Beam Cannon | 38% | -10/Materials Lgt. Treads | 1% | -8/Materials Lgt. Treads | 9% | -8/Materials Wheel | 2% | -8/Storage | Broken Studied --------- Wheel | -8/Materials | Hacked Com. Wheel | -8/Materials | Hacked Arm. Treads | -8/Materials | Hacked Adv. Treads | -8/Materials | Hacked Lgt. Treads | -8/Materials | Hacked Field Laser | -8/Materials | Hacked Imp. Treads | -4/Factory | Hacked Plasma Rifle | -4/Factory | Hacked Alien Tech Used ----------------- Dimensional Node Initializer Transdimensional Reconstructor Achievements -------------- None Challenges ------------ None Game ------ Seed BladePhaseInverter Manual? 0 Play Time 04:15:01 Cumulative 112.7 hours Start 2025.12.07 @ 10:36:05 End 2025.12.08 @ 14:02:47 Sessions 2 Manual Loads 0 Difficulty Rogue Special Mode None Game No. 95 Rogue 95 Adventurer 0 Explorer 0 Win Type - Total 1 Types 1/0/0/0/0/0/0/0/0/0 Lore% 42 Gallery% 44 Achievement% 36 Wizard Run 0 Options --------- Layout 2 ASCII 0 Keyboard 0 Movement Mouse Keybinds 0 Fullscreen 2 Font 24/Terminus Map View 50x44 Zoom Use 0% Tactical HUD 1 Map Filters NONE Filters NONE Steam 1 RUN: d31521b3-cf66-49c1-9c8b-49239cf71dcd